fUST/lending_fUST_20250411
["ID","MTS","AMOUNT","RATE_DAILY","PERIOD"]
[357700097,1744351843337,-2676.9279935,0.0002499,2]
[357700098,1744351843352,-1454.69999998,0.0002499,2]
[357700606,1744353046450,-1155.7520528,0.00018,2]
[357700607,1744353046460,-911.13025961,0.00022771,3]
[357700608,1744353046472,-319.35842973,0.00022771,3]
[357700613,1744353844630,-10000.0,0.00029,120]
[357700614,1744353844658,-204.0,0.0003576,43]
[357700615,1744353844684,-5000.0,0.000385,60]
[357700616,1744353844711,-163.683,0.00039026,53]
[357700617,1744353844738,-5000.0,0.00041,90]
[357700618,1744353844764,-500.0,0.00041095,120]
[357700619,1744353844790,-500.0,0.00041095,120]
[357700620,1744353844816,-500.0,0.00041095,120]
[357700621,1744353844841,-500.0,0.00041095,120]
[357700622,1744353844866,-500.0,0.00041095,120]
[357700623,1744353844890,-500.0,0.00041095,120]
[357700624,1744353844915,-500.0,0.00041095,120]
[357700625,1744353844940,-500.0,0.00041095,120]
[357700626,1744353844965,-500.0,0.00041095,120]
[357700627,1744353844990,-587.74122607,0.00041095,120]
[357700628,1744353845015,-3200.8,0.00043,120]
[357700629,1744353845040,-5009.533454,0.000435,100]
[357700630,1744353845065,-1472.70177762,0.000438,60]
[357700631,1744353845092,-1000.0,0.0004398,120]
[357700632,1744353845116,-2000.0,0.00044,60]
[357700633,1744353845140,-150.78,0.000444,120]
[357700634,1744353845165,-1148.96,0.00045,60]
[357700635,1744353845194,-163.89,0.000454,39]
[357700636,1744353845219,-184.0,0.00046,120]
[357700637,1744353845243,-168.65209897,0.00046027,120]
[357700638,1744353845268,-1000.0,0.00047,120]
[357700639,1744353845296,-161.04909718,0.00048,120]
[357700640,1744353845324,-780.29460798,0.000488,120]
[357700641,1744353845348,-7505.14723313,0.00049,120]
[357700642,1744353845372,-327.0,0.0005,120]
[357700643,1744353845397,-3000.0,0.000535,120]
[357700644,1744353845421,-210.0,0.00054,120]
[357700645,1744353845445,-3000.0,0.000545,120]
[357700646,1744353845469,-500.0,0.00054794,120]
[357700647,1744353845495,-518.07541423,0.00054794,120]
[357700648,1744353845520,-644.89722164,0.00054794,120]
[357700649,1744353845545,-500.0,0.00054794,120]
[357700650,1744353845569,-500.0,0.00054794,120]
[357700651,1744353845594,-508.18704378,0.00054794,120]
[357700652,1744353845619,-506.18060403,0.00054794,120]
[357700653,1744353845643,-500.0,0.00054794,120]
[357700654,1744353845666,-503.61097152,0.00054794,120]
[357700655,1744353845690,-502.41123372,0.00054794,120]
[357700656,1744353845714,-500.0,0.00054794,120]
[357700657,1744353845738,-500.0,0.00054794,120]
[357700658,1744353845762,-507.15524935,0.00054794,120]
[357700659,1744353845786,-500.0,0.00054794,120]
[357700660,1744353845810,-506.44367271,0.00054794,120]
[357700661,1744353845835,-502.94216024,0.00054794,120]
[357700662,1744353845860,-500.0,0.00054794,120]
[357700663,1744353845884,-521.96813059,0.00054794,120]
[357700664,1744353845908,-507.64982615,0.00054794,120]
[357700665,1744353845932,-500.0,0.00054794,120]
[357700666,1744353845956,-500.0,0.00054794,120]
[357700667,1744353845980,-1000.0,0.00054794,120]
[357700668,1744353846004,-509.4193593,0.00054794,120]
[357700669,1744353846029,-512.89099367,0.00054794,120]
[357700670,1744353846058,-508.50440543,0.00054794,120]
[357700671,1744353846082,-500.0,0.00054794,120]
[357700672,1744353846108,-511.39885795,0.00054794,120]
[357700673,1744353846132,-500.0,0.00054794,120]
[357700674,1744353846158,-513.82055078,0.00054794,120]
[357700675,1744353846182,-558.52947426,0.00054794,120]
[357700676,1744353846207,-505.35324826,0.00054794,120]
[357700677,1744353846231,-500.0,0.00054794,120]
[357700678,1744353846259,-500.0,0.00054794,120]
[357700679,1744353846284,-511.89141014,0.00054794,120]
[357700680,1744353846310,-500.0,0.00054794,120]
[357700681,1744353846336,-530.82901336,0.00054794,120]
[357700682,1744353846360,-510.44021432,0.00054794,120]
[357700683,1744353846388,-323.06769111,0.00054794,120]
[357700684,1744353846413,-500.0,0.00054794,120]
[357700685,1744353846437,-515.19028125,0.00054794,120]
[357700686,1744353846560,-500.0,0.00054794,120]
[357700687,1744353846586,-503.08909647,0.00054794,120]
[357700688,1744353846613,-500.0,0.00054794,120]
[357700689,1744353846639,-509.26975001,0.00054794,120]
[357700690,1744353846663,-503.88566808,0.00054794,120]
[357700691,1744353846689,-501.23382621,0.00054794,120]
[357700692,1744353846714,-504.60362178,0.00054794,120]
[357700693,1744353846739,-411.61306969,0.00054794,120]
[357700694,1744353846766,-195.82251143,0.00054794,120]
[357700695,1744353846791,-504.23522256,0.00054794,120]
[357700696,1744353846817,-504.23140008,0.00054794,120]
[357700697,1744353846842,-500.0,0.00054794,120]
[357700698,1744353846868,-1079.2,0.00054794,120]
[357700699,1744353846894,-643.55806274,0.00054794,120]
[357700700,1744353846919,-502.59967156,0.00054794,120]
[357700701,1744353846943,-508.19493792,0.00054794,120]
[357700702,1744353846969,-500.0,0.00054794,120]
[357700703,1744353846995,-504.94381667,0.00054794,120]
[357700704,1744353847020,-563.05896043,0.00054794,120]
[357700705,1744353847045,-500.0,0.00054794,120]
[357700706,1744353847071,-500.0,0.00054794,120]
[357700707,1744353847098,-606.25146254,0.00054794,120]
[357700708,1744353847124,-194.59579878,0.00054794,120]
[357700709,1744353847150,-509.7511759,0.00054794,120]
[357700710,1744353847176,-501.18920555,0.00054794,120]
[357700711,1744353847200,-500.0,0.00054794,120]
[357700712,1744353847225,-507.13282849,0.00054794,120]
[357700713,1744353847250,-501.14133095,0.00054794,120]
[357700714,1744353847275,-509.03319156,0.00054794,120]
[357700715,1744353847300,-175.77643902,0.00054794,120]
[357700716,1744353847327,-502.58951876,0.00054794,120]
[357700717,1744353847353,-502.4159637,0.00054794,120]
[357700718,1744353847378,-509.56992507,0.00054794,120]
[357700719,1744353847404,-503.36588745,0.00054794,120]
[357700720,1744353847429,-502.27296439,0.00054794,120]
[357700721,1744353847453,-502.84718193,0.00054794,120]
[357700722,1744353847479,-503.1632607,0.00054794,120]
[357700723,1744353847503,-507.8856113,0.00054794,120]
[357700724,1744353847529,-500.0,0.00054794,120]
[357700725,1744353847553,-503.96755503,0.00054794,120]
[357700726,1744353847579,-500.0,0.00054794,120]
[357700727,1744353847606,-500.0,0.00054794,120]
[357700728,1744353847631,-500.0,0.00054794,120]
[357700729,1744353847656,-501.07668123,0.00054794,120]
[357700730,1744353847680,-590.68916818,0.00054794,120]
[357700731,1744353847705,-501.69390175,0.00054794,120]
[357700732,1744353847729,-500.0,0.00054794,120]
[357700733,1744353847753,-505.795983,0.00054794,120]
[357700734,1744353847777,-502.60686371,0.00054794,120]
[357700735,1744353847802,-501.6051451,0.00054794,120]
[357700736,1744353847827,-503.42573548,0.00054794,120]
[357700737,1744353847852,-502.82846484,0.00054794,120]
[357700738,1744353847883,-506.50212756,0.00054794,120]
[357700739,1744353847908,-500.0,0.00054794,120]
[357700740,1744353847933,-500.0,0.00054794,120]
[357700741,1744353847958,-503.63916452,0.00054794,120]
[357700742,1744353847985,-501.99294122,0.00054794,120]
[357700743,1744353848009,-501.3927923,0.00054794,120]
[357700744,1744353848034,-500.5808371,0.00054794,120]
[357700745,1744353848059,-359.20337823,0.00054794,120]
[357700746,1744353848083,-500.0,0.00054794,120]
[357700747,1744353848112,-500.0,0.00054794,120]
[357700748,1744353848143,-501.23811731,0.00054794,120]
[357700749,1744353848170,-503.17693888,0.00054794,120]
[357700750,1744353848196,-504.61286239,0.00054794,120]
[357700751,1744353848220,-501.7472033,0.00054794,120]
[357700752,1744353848245,-622.15799031,0.00054794,120]
[357700753,1744353848270,-500.0,0.00054794,120]
[357700754,1744353848295,-503.81121995,0.00054794,120]
[357700755,1744353848328,-250.80497781,0.00054794,120]
[357700756,1744353848356,-502.54663884,0.00054794,120]
[357700757,1744353848382,-500.0,0.00054794,60]
[357700758,1744353848409,-514.84840371,0.00054794,120]
[357700759,1744353848434,-500.0,0.00054794,120]
[357700760,1744353848458,-500.0,0.00054794,120]
[357700761,1744353848484,-500.0,0.00054794,120]
[357700762,1744353848510,-500.0,0.00054794,120]
[357700763,1744353848535,-500.0,0.00054794,120]
[357700764,1744353848560,-500.0,0.00054794,120]
[357700765,1744353848585,-534.22414046,0.00054794,120]
[357700766,1744353848609,-509.27151077,0.00054794,120]
[357700767,1744353848634,-500.0,0.00054794,120]
[357700768,1744353848659,-502.46647033,0.00054794,120]
[357700769,1744353848684,-500.0,0.00054794,120]
[357700770,1744353848709,-513.90657119,0.00054794,120]
[357700771,1744353848735,-500.0,0.00054794,120]
[357700772,1744353848760,-501.20098099,0.00054794,120]
[357700773,1744353848785,-500.0,0.00054794,120]
[357700774,1744353848895,-500.60880737,0.00054794,120]
[357700775,1744353848920,-500.0,0.00054794,120]
[357700776,1744353848946,-500.0,0.00054794,120]
[357700777,1744353848972,-500.0,0.00054794,120]
[357700778,1744353848998,-500.0,0.00054794,120]
[357700779,1744353849023,-500.0,0.00054794,120]
[357700780,1744353849049,-500.0,0.00054794,120]
[357700781,1744353849074,-551.16698344,0.00054794,120]
[357700782,1744353849099,-502.10887132,0.00054794,120]
[357700783,1744353849124,-244.80889236,0.00054794,120]
[357700784,1744353849149,-2089.07,0.00054794,120]
[357700785,1744353849175,-500.56116045,0.00054794,120]
[357700786,1744353849199,-501.70089948,0.00054794,120]
[357700787,1744353849225,-500.0,0.00054794,120]
[357700788,1744353849250,-391.8765186,0.00054794,120]
[357700789,1744353849276,-500.0,0.00054794,120]
[357700790,1744353849301,-504.22994558,0.00054794,120]
[357700791,1744353849328,-500.73706306,0.00054794,120]
[357700792,1744353849355,-500.0,0.00054794,120]
[357700793,1744353849380,-500.0,0.00054794,120]
[357700794,1744353849405,-500.0,0.00054794,120]
[357700795,1744353849430,-500.0,0.00054794,120]
[357700796,1744353849454,-501.23003157,0.00054794,120]
[357700797,1744353849479,-503.45427627,0.00054794,120]
[357700798,1744353849504,-500.54549316,0.00054794,120]
[357700799,1744353849527,-500.46124896,0.00054794,120]
[357700800,1744353849553,-500.0,0.00054794,120]
[357700801,1744353849580,-500.0,0.00054794,120]
[357700802,1744353849605,-500.0,0.00054794,120]
[357700803,1744353849631,-268.6792879,0.00054794,120]
[357700804,1744353849657,-215.73918778,0.00054794,120]
[357700805,1744353849685,-500.0,0.00054794,120]
[357700806,1744353849709,-503.41397777,0.00054794,120]
[357700807,1744353849734,-500.0,0.00054794,120]
[357700808,1744353849758,-504.31099399,0.00054794,120]
[357700809,1744353849783,-504.40270177,0.00054794,120]
[357700810,1744353849808,-500.0,0.00054794,120]
[357700811,1744353849834,-500.0,0.00054794,120]
[357700812,1744353849859,-501.00011976,0.00054794,120]
[357700813,1744353849884,-506.13952169,0.00054794,120]
[357700814,1744353849909,-500.0,0.00054794,120]
[357700815,1744353849934,-500.0,0.00054794,120]
[357700816,1744353849959,-1000.0,0.00054794,120]
[357700817,1744353849983,-500.0,0.00054794,120]
[357700818,1744353850007,-506.33501902,0.00054794,120]
[357700819,1744353850036,-500.0,0.00054794,120]
[357700820,1744353850068,-500.0,0.00054794,120]
[357700821,1744353850100,-520.45814444,0.00054794,120]
[357700822,1744353850129,-500.0,0.00054794,120]
[357700823,1744353850160,-510.31649686,0.00054794,120]
[357700824,1744353850190,-506.07552742,0.00054794,120]
[357700825,1744353850219,-451.08873052,0.00054794,120]
[357700826,1744353850249,-522.38949386,0.00054794,120]
[357700827,1744353850279,-310.67237804,0.00054794,120]
[357700828,1744353850312,-500.0,0.00054794,120]
[357700829,1744353850343,-512.69468161,0.00054794,120]
[357700830,1744353850373,-500.0,0.00054794,120]
[357700831,1744353850404,-501.74255302,0.00054794,120]
[357700832,1744353850434,-1522.59,0.00054794,120]
[357700833,1744353850463,-524.09068484,0.00054794,120]
[357700834,1744353850492,-184.66569068,0.00054794,120]
[357700835,1744353850518,-505.47211865,0.00054794,120]
[357700836,1744353850547,-500.0,0.00054794,120]
[357700837,1744353850575,-500.0,0.00054794,120]
[357700838,1744353850604,-500.0,0.00054794,120]
[357700839,1744353850634,-246.62341845,0.00054794,120]
[357700840,1744353850663,-500.0,0.00054794,120]
[357700841,1744353850694,-501.00385351,0.00054794,120]
[357700842,1744353850723,-500.0,0.00054794,120]
[357700843,1744353850754,-500.0,0.00054794,120]
[357700844,1744353850781,-519.21757877,0.00054794,120]
[357700845,1744353850807,-500.0,0.00054794,120]
[357700846,1744353850837,-511.43554266,0.00054794,120]
[357700847,1744353850867,-502.81625432,0.00054794,120]
[357700848,1744353850898,-4166.62,0.00054794,120]
[357700849,1744353850926,-500.0,0.00054794,120]
[357700850,1744353850955,-510.24319828,0.00054794,120]
[357700851,1744353850984,-829.89,0.00054794,120]
[357700852,1744353851014,-500.0,0.00054794,120]
[357700853,1744353851042,-507.84058994,0.00054794,120]
[357700854,1744353851069,-296.7705924,0.00054794,120]
[357700855,1744353851098,-504.8952971,0.00054794,120]
[357700856,1744353851126,-500.0,0.00054794,120]
[357700857,1744353851154,-500.0,0.00054794,120]
[357700858,1744353851181,-500.0,0.00054794,120]
[357700859,1744353851210,-500.0,0.00054794,120]
[357700860,1744353851239,-3000.0,0.000585,120]
[357700861,1744353851267,-500.0,0.00060273,120]
[357700862,1744353851294,-500.0,0.00060273,120]
[357700863,1744353851456,-500.0,0.00060273,120]
[357700864,1744353851488,-296.19959257,0.00060273,120]
[357700865,1744353851514,-633.77013311,0.00060273,120]
[357700866,1744353851540,-500.0,0.00060273,120]
[357700867,1744353851566,-500.0,0.00060273,120]
[357700868,1744353851592,-487.65899553,0.00060273,120]
[357700869,1744353851619,-500.0,0.00060273,120]
[357700870,1744353851644,-500.0,0.00060273,120]
[357700871,1744353851670,-520.70876815,0.00060273,120]
[357700872,1744353851695,-500.0,0.00060273,120]
[357700873,1744353851720,-500.0,0.00060273,120]
[357700874,1744353851746,-500.0,0.00060273,120]
[357700875,1744353851771,-500.0,0.00060273,120]
[357700876,1744353851797,-500.0,0.00060273,120]
[357700877,1744353851822,-500.0,0.00060273,120]
[357700878,1744353851847,-172.20301252,0.00060273,120]
[357700879,1744353851872,-601.03935772,0.00060273,120]
[357700880,1744353851896,-1079.2,0.00060273,120]
[357700881,1744353851920,-500.0,0.00060273,120]
[357700882,1744353851944,-500.0,0.00060273,120]
[357700883,1744353851968,-500.0,0.00060273,120]
[357700884,1744353851993,-500.0,0.00060273,120]
[357700885,1744353852017,-500.0,0.00060273,120]
[357700886,1744353852043,-500.0,0.00060273,120]
[357700887,1744353852068,-633.82206784,0.00060273,120]
[357700888,1744353852093,-266.667002,0.00060273,120]
[357700889,1744353852119,-282.79899483,0.00060273,120]
[357700890,1744353852144,-500.0,0.00060273,120]
[357700891,1744353852168,-500.0,0.00060273,120]
[357700892,1744353852193,-504.24723624,0.00060273,120]
[357700893,1744353852217,-502.76337094,0.00060273,120]
[357700894,1744353852242,-500.0,0.00060273,120]
[357700895,1744353852267,-500.0,0.00060273,60]
[357700896,1744353852292,-377.51237496,0.00060273,120]
[357700897,1744353852319,-413.34014107,0.00060273,120]
[357700898,1744353852346,-266.28392966,0.00060273,120]
[357700899,1744353852372,-179.34,0.00060273,120]
[357700900,1744353852400,-2089.07,0.00060273,120]
[357700901,1744353852427,-500.0,0.00060273,120]
[357700902,1744353852465,-500.0,0.00060273,120]
[357700903,1744353852496,-199.51676799,0.00060273,120]
[357700904,1744353852525,-257.19528183,0.00060273,120]
[357700905,1744353852552,-504.63027643,0.00060273,120]
[357700906,1744353852579,-500.0,0.00060273,120]
[357700907,1744353852606,-500.0,0.00060273,120]
[357700908,1744353852633,-373.73806723,0.00060273,120]
[357700909,1744353852662,-500.0,0.00060273,120]
[357700910,1744353852689,-591.74100465,0.00060273,120]
[357700911,1744353852717,-500.0,0.00060273,120]
[357700912,1744353852744,-500.0,0.00060273,120]
[357700913,1744353852771,-500.0,0.00060273,120]
[357700914,1744353852798,-182.5686881,0.00060273,120]
[357700915,1744353852827,-181.39891056,0.00060273,120]
[357700916,1744353852854,-1000.0,0.00060273,120]
[357700917,1744353852880,-157.45129753,0.00060273,120]
[357700918,1744353852909,-500.0,0.00060273,120]
[357700919,1744353852936,-500.0,0.00060273,120]
[357700920,1744353852964,-500.0,0.00060273,120]
[357700921,1744353852993,-500.0,0.00060273,120]
[357700922,1744353853020,-173.5366661,0.00060273,120]
[357700923,1744353853046,-1522.59,0.00060273,120]
[357700924,1744353853073,-500.0,0.00060273,120]
[357700925,1744353853100,-500.0,0.00060273,120]
[357700926,1744353853127,-500.0,0.00060273,120]
[357700927,1744353853154,-500.0,0.00060273,120]
[357700928,1744353853185,-500.0,0.00060273,120]
[357700929,1744353853212,-511.49508118,0.00060273,120]
[357700930,1744353853238,-500.0,0.00060273,120]
[357700931,1744353853264,-4166.62,0.00060273,120]
[357700932,1744353853291,-500.0,0.00060273,120]
[357700933,1744353853318,-829.89,0.00060273,120]
[357700934,1744353853344,-500.0,0.00060273,120]
[357700935,1744353853373,-500.0,0.00060273,120]
[357700936,1744353853400,-503.51243507,0.00060273,120]
[357700937,1744353853426,-500.0,0.00060273,120]
[357700938,1744353853453,-454.46306076,0.00060273,120]
[357700939,1744353853479,-3000.0,0.000605,120]
[357700940,1744353853506,-163.683,0.00062684,120]
[357700941,1744353853532,-210.0,0.00064,120]
[357700942,1744353853557,-3000.0,0.000645,120]
[357700943,1744353853582,-500.0,0.00065753,120]
[357700944,1744353853608,-500.0,0.00065753,120]
[357700945,1744353853634,-500.0,0.00065753,120]
[357700946,1744353853659,-500.0,0.00065753,120]
[357700947,1744353853684,-500.0,0.00065753,120]
[357700948,1744353853709,-500.00062192,0.00065753,120]
[357700949,1744353853734,-500.0,0.00065753,120]
[357700950,1744353853760,-500.0,0.00065753,120]
[357700951,1744353853785,-500.0,0.00065753,120]
[357700952,1744353853811,-237.23040083,0.00065753,120]
[357700953,1744353853836,-500.0,0.00065753,120]
[357700954,1744353853862,-500.0,0.00065753,120]
[357700955,1744353853890,-500.0,0.00065753,120]
[357700956,1744353854041,-1079.2,0.00065753,120]
[357700957,1744353854068,-500.0,0.00065753,120]
[357700958,1744353854094,-500.0,0.00065753,120]
[357700959,1744353854119,-500.0,0.00065753,120]
[357700960,1744353854145,-503.56256705,0.00065753,120]
[357700961,1744353854171,-500.0,0.00065753,120]
[357700962,1744353854196,-152.22428825,0.00065753,120]
[357700963,1744353854222,-565.87489916,0.00065753,120]
[357700964,1744353854248,-500.0,0.00065753,120]
[357700965,1744353854273,-500.0,0.00065753,120]
[357700966,1744353854299,-335.76212588,0.00065753,60]
[357700967,1744353854326,-2089.07,0.00065753,120]
[357700968,1744353854351,-500.0,0.00065753,120]
[357700969,1744353854377,-288.9576093,0.00065753,120]
[357700970,1744353854405,-500.0,0.00065753,120]
[357700971,1744353854431,-500.0,0.00065753,120]
[357700972,1744353854455,-500.0,0.00065753,120]
[357700973,1744353854482,-281.36662233,0.00065753,120]
[357700974,1744353854508,-353.01266602,0.00065753,120]
[357700975,1744353854535,-348.36549784,0.00065753,120]
[357700976,1744353854560,-1000.0,0.00065753,120]
[357700977,1744353854586,-500.0,0.00065753,120]
[357700978,1744353854612,-500.0,0.00065753,120]
[357700979,1744353854637,-500.0,0.00065753,120]
[357700980,1744353854663,-500.0,0.00065753,120]
[357700981,1744353854689,-1522.59,0.00065753,120]
[357700982,1744353854714,-286.40765645,0.00065753,120]
[357700983,1744353854739,-500.0,0.00065753,120]
[357700984,1744353854764,-500.0,0.00065753,120]
[357700985,1744353854789,-500.0,0.00065753,120]
[357700986,1744353854814,-500.0,0.00065753,120]
[357700987,1744353854840,-500.0,0.00065753,120]
[357700988,1744353854866,-4166.62,0.00065753,120]
[357700989,1744353854909,-500.0,0.00065753,120]
[357700990,1744353854938,-829.89,0.00065753,120]
[357700991,1744353854965,-507.51,0.00065753,120]
[357700992,1744353854992,-500.0,0.00065753,120]
[357700993,1744353855019,-500.0,0.00065753,120]
[357700994,1744353855046,-557.09834366,0.00067452,33]
[357700995,1744353855072,-746021.78171012,0.00068493,59]
[357700997,1744353863116,-511.97766479,0.00054794,120]
[357700998,1744353863145,-300.08041965,0.00068493,33]
[357700999,1744353863171,-999187.94191556,0.00068493,59]
[357701000,1744353867887,-151.0,0.00068493,33]
[357701001,1744353867912,-151.0,0.00068493,33]
[357701002,1744353867942,-298.0,0.00068493,33]
[357701003,1744353867967,-999400.0,0.00068493,59]
[357701004,1744353870993,-1000000.0,0.00068493,59]
[357701005,1744353873702,-1000000.0,0.00068493,59]
[357701006,1744353892767,-300.31010242,0.00068493,33]
[357701007,1744353892794,-300.12587978,0.00068493,33]
[357701008,1744353892826,-295390.27637432,0.00068493,59]
[357701009,1744353898368,500.0,0.00054794,120]
[357701010,1744353898621,500.0,0.00060273,120]
[357701011,1744353898903,500.0,0.00065753,120]
[357701033,1744354167039,-500.0,0.00041095,120]
[357701034,1744354167065,-500.0,0.00041095,120]
[357701035,1744354167090,-500.0,0.00041095,120]
[357701036,1744354167117,-500.0,0.00041095,120]
[357701037,1744354167142,-500.0,0.00041095,120]
[357701038,1744354167167,-500.0,0.00041095,120]
[357701039,1744354167193,-500.0,0.00041095,120]
[357701040,1744354167217,-500.0,0.00041095,120]
[357701041,1744354167242,-500.0,0.00041095,120]
[357701042,1744354167266,-587.74122607,0.00041095,120]
[357701043,1744354167292,-151.0,0.00045,120]
[357701044,1744354167316,-151.0,0.00045,120]
[357701045,1744354167341,-580.0,0.00046,120]
[357701046,1744354167370,-151.0,0.00047595,120]
[357701047,1744354167394,-151.0,0.00047595,120]
[357701048,1744354167420,-151.0,0.00047595,120]
[357701049,1744354167449,-580.0,0.00048,120]
[357701050,1744354167474,-580.0,0.0005,120]
[357701051,1744354167501,-580.0,0.00052,120]
[357701052,1744354167526,-151.0,0.00052986,120]
[357701053,1744354167551,-580.0,0.00054,120]
[357701054,1744354167575,-500.0,0.00054794,120]
[357701055,1744354167600,-500.0,0.00054794,120]
[357701056,1744354167624,-500.0,0.00054794,120]
[357701057,1744354167649,-633.77013311,0.00054794,120]
[357701058,1744354167673,-507.15524935,0.00054794,120]
[357701059,1744354167699,-500.0,0.00054794,120]
[357701060,1744354167724,-500.0,0.00054794,120]
[357701061,1744354167749,-522.38949386,0.00054794,120]
[357701062,1744354167774,-506.18060403,0.00054794,120]
[357701063,1744354167799,-520.45814444,0.00054794,120]
[357701064,1744354167823,-506.44367271,0.00054794,120]
[357701065,1744354167848,-500.0,0.00054794,120]
[357701066,1744354167873,-502.94216024,0.00054794,120]
[357701067,1744354167898,-505.47211865,0.00054794,120]
[357701068,1744354167924,-500.0,0.00054794,120]
[357701069,1744354167950,-500.0,0.00054794,120]
[357701070,1744354167976,-500.0,0.00054794,120]
[357701071,1744354168001,-500.0,0.00054794,120]
[357701072,1744354168026,-1395.71,0.00054794,120]
[357701073,1744354168067,-195.82251143,0.00054794,120]
[357701074,1744354168094,-500.0,0.00054794,120]
[357701075,1744354168120,-519.21757877,0.00054794,120]
[357701076,1744354168146,-500.0,0.00054794,120]
[357701077,1744354168171,-507.64982615,0.00054794,120]
[357701078,1744354168197,-500.0,0.00054794,120]
[357701079,1744354168222,-512.89099367,0.00054794,120]
[357701080,1744354168248,-643.55806274,0.00054794,120]
[357701081,1744354168272,-509.4193593,0.00054794,120]
[357701082,1744354168297,-500.0,0.00054794,120]
[357701083,1744354168321,-508.50440543,0.00054794,120]
[357701084,1744354168345,-500.0,0.00054794,120]
[357701085,1744354168368,-246.62341845,0.00054794,120]
[357701086,1744354168393,-500.0,0.00054794,120]
[357701087,1744354168418,-500.0,0.00054794,120]
[357701088,1744354168446,-500.0,0.00054794,120]
[357701089,1744354168471,-1000.0,0.00054794,120]
[357701090,1744354168496,-563.05896043,0.00054794,120]
[357701091,1744354168523,-829.89,0.00054794,120]
[357701092,1744354168549,-500.0,0.00054794,120]
[357701093,1744354168575,-184.66569068,0.00054794,120]
[357701094,1744354168732,-3645.79,0.00054794,120]
[357701095,1744354168764,-511.39885795,0.00054794,120]
[357701096,1744354168789,-194.59579878,0.00054794,120]
[357701097,1744354168814,-500.0,0.00054794,120]
[357701098,1744354168841,-504.8952971,0.00054794,120]
[357701099,1744354168867,-500.0,0.00054794,120]
[357701100,1744354168894,-500.0,0.00054794,120]
[357701101,1744354168921,-500.0,0.00054794,120]
[357701102,1744354168948,-500.0,0.00054794,120]
[357701103,1744354168979,-511.97766479,0.00054794,120]
[357701104,1744354169005,-500.0,0.00054794,120]
[357701105,1744354169031,-513.90657119,0.00054794,120]
[357701106,1744354169056,-511.89141014,0.00054794,120]
[357701107,1744354169080,-504.22994558,0.00054794,120]
[357701108,1744354169106,-500.0,0.00054794,120]
[357701109,1744354169132,-500.0,0.00054794,120]
[357701110,1744354169160,-500.0,0.00054794,120]
[357701111,1744354169188,-500.0,0.00054794,120]
[357701112,1744354169217,-500.0,0.00054794,120]
[357701113,1744354169244,-500.0,0.00054794,120]
[357701114,1744354169269,-551.16698344,0.00054794,120]
[357701115,1744354169294,-500.0,0.00054794,120]
[357701116,1744354169318,-513.82055078,0.00054794,120]
[357701117,1744354169342,-505.35324826,0.00054794,120]
[357701118,1744354169366,-500.0,0.00054794,60]
[357701119,1744354169391,-500.0,0.00054794,120]
[357701120,1744354169417,-244.80889236,0.00054794,120]
[357701121,1744354169445,-296.7705924,0.00054794,120]
[357701122,1744354169471,-500.0,0.00054794,120]
[357701123,1744354169495,-500.0,0.00054794,120]
[357701124,1744354169522,-500.0,0.00054794,120]
[357701125,1744354169548,-500.0,0.00054794,120]
[357701126,1744354169574,-500.0,0.00054794,120]
[357701127,1744354169600,-500.0,0.00054794,120]
[357701128,1744354169627,-534.22414046,0.00054794,120]
[357701129,1744354169652,-500.0,0.00054794,120]